Workbook

Sheet SEMESTRIS
B1: MANS NODARBĪBU GRAFIKS
B2: RUDENS SEMESTRIS
C3: SĀKUMA LAIKS | D3: LAIKA INTERVĀLS | F3: GADS
C4: 09:00:00 | D4: 60 | E4: (minūtēs)
B5: LAIKS | C5: PIRMDIENA | D5: OTRDIENA | E5: TREŠDIENA | F5: CETURTDIENA | G5: PIEKTDIENA | H5: SESTDIENA | I5: SVĒTDIENA
B6: =SākumaLaiks+TIME(0,(ROW(A1)-1)*LaikaIntervāls,0) -> 09:00:00 | C6: Brokastis | D6: Brokastis | E6: Brokastis | F6: Brokastis | G6: Brokastis
B7: 10:00:00 | C7: Uzņēmējdarbības vadība: lekcija B korpusā, 256. telpā
B8: 11:00:00 | F8: Fizika: laboratorijas darbs J korpusā, 309. telpā
B9: 12:00:00
B10: 13:00:00
B11: 14:00:00
B12: 15:00:00
B13: 16:00:00
B14: 17:00:00
B15: 18:00:00
B16: 19:00:00
B17: 20:00:00
B18: 21:00:00
B19: 22:00:00
B20: 23:00:00
B21: 1
B22: 1.041666667
B23: 1.083333333
B24: 1.125
B25: 1.166666667
B26: 1.208333333
B27: 1.25
B28: 1.291666667
B29: 1.333333333

Sheet KREDĪTPUNKTI
B1: STUDIJU
B2: KREDĪTPUNKTU PLĀNOTĀJS
B3: Akadēmiskā grāda nosaukums | C3: =Gads -> GADS
B4: VISPĀRĒJAIS PROGRESS | D4: VISPĀRĒJAIS PROGRESS
B5: =AVERAGE(Mācību_priekšmeti[NOVĒRTĒJUMS]) -> 3.5 | C5: =IFERROR(TEXT(AVERAGEIF(Mācību_priekšmeti[PABEIGTS],"Jā",Mācību_priekšmeti[NOVĒRTĒJUMS]),"0,00"),"0,00")&" Pašreizējā vidējā atzīme" -> 3,50 Pašreizējā vidējā atzīme | D5: =COUNTIF(Mācību_priekšmeti[PABEIGTS],"Jā")/COUNTA(Mācību_priekšmeti[MĀCĪBU PRIEKŠMETA NOSAUKUMS]) -> 0.6666666667 | E5: =TEXT(COUNTIF(Mācību_priekšmeti[PABEIGTS],"Jā")/COUNTA(Mācību_priekšmeti[MĀCĪBU PRIEKŠMETA NOSAUKUMS]),"0%")&" pabeigti" -> 67% pabeigti
B6: Piezīme. Šis kredītpunktu kopsavilkums tiek automātiski aizpildīts ar vērtībām, ko ievadāt tālāk pieejamajā tabulā Augstskolas mācību priekšmeti
B7: PRASĪBA | C7: KREDĪTPUNKTU KOPSKAITS | D7: IEGŪTI | E7: NEPIECIEŠAMS
B8: A grupas mācību priekšmets | C8: =IF(SUMIF(Mācību_priekšmeti[NEPIECIEŠAMS],KREDĪTPUNKTI!$B8,Mācību_priekšmeti[KREDĪTPUNKTI])=0,"0",SUMIF(Mācību_priekšmeti[NEPIECIEŠAMS],KREDĪTPUNKTI!$B8,Mācību_priekšmeti[KREDĪTPUNKTI])) -> 4 | D8: =SUMIFS(Mācību_priekšmeti[KREDĪTPUNKTI],Mācību_priekšmeti[NEPIECIEŠAMS],KREDĪTPUNKTI!$B8,Mācību_priekšmeti[PABEIGTS],"Jā") -> 4 | E8: =SUMIF(Mācību_priekšmeti[NEPIECIEŠAMS],KREDĪTPUNKTI!$B8,Mācību_priekšmeti[KREDĪTPUNKTI])-SUMIFS(Mācību_priekšmeti[KREDĪTPUNKTI],Mācību_priekšmeti[NEPIECIEŠAMS],KREDĪTPUNKTI!$B8,Mācību_priekšmeti[PABEIGTS],"Jā") -> 0
B9: B grupas mācību priekšmets | C9: =IF(SUMIF(Mācību_priekšmeti[NEPIECIEŠAMS],KREDĪTPUNKTI!$B9,Mācību_priekšmeti[KREDĪTPUNKTI])=0,"0",SUMIF(Mācību_priekšmeti[NEPIECIEŠAMS],KREDĪTPUNKTI!$B9,Mācību_priekšmeti[KREDĪTPUNKTI])) -> 3 | D9: =SUMIFS(Mācību_priekšmeti[KREDĪTPUNKTI],Mācību_priekšmeti[NEPIECIEŠAMS],KREDĪTPUNKTI!$B9,Mācību_priekšmeti[PABEIGTS],"Jā") -> 0 | E9: =SUMIF(Mācību_priekšmeti[NEPIECIEŠAMS],KREDĪTPUNKTI!$B9,Mācību_priekšmeti[KREDĪTPUNKTI])-SUMIFS(Mācību_priekšmeti[KREDĪTPUNKTI],Mācību_priekšmeti[NEPIECIEŠAMS],KREDĪTPUNKTI!$B9,Mācību_priekšmeti[PABEIGTS],"Jā") -> 3
B10: C grupas mācību priekšmets | C10: =IF(SUMIF(Mācību_priekšmeti[NEPIECIEŠAMS],KREDĪTPUNKTI!$B10,Mācību_priekšmeti[KREDĪTPUNKTI])=0,"0",SUMIF(Mācību_priekšmeti[NEPIECIEŠAMS],KREDĪTPUNKTI!$B10,Mācību_priekšmeti[KREDĪTPUNKTI])) -> 2 | D10: =SUMIFS(Mācību_priekšmeti[KREDĪTPUNKTI],Mācību_priekšmeti[NEPIECIEŠAMS],KREDĪTPUNKTI!$B10,Mācību_priekšmeti[PABEIGTS],"Jā") -> 2 | E10: =SUMIF(Mācību_priekšmeti[NEPIECIEŠAMS],KREDĪTPUNKTI!$B10,Mācību_priekšmeti[KREDĪTPUNKTI])-SUMIFS(Mācību_priekšmeti[KREDĪTPUNKTI],Mācību_priekšmeti[NEPIECIEŠAMS],KREDĪTPUNKTI!$B10,Mācību_priekšmeti[PABEIGTS],"Jā") -> 0
B11: Vispārīgie mācību priekšmeti | C11: =IF(SUMIF(Mācību_priekšmeti[NEPIECIEŠAMS],KREDĪTPUNKTI!$B11,Mācību_priekšmeti[KREDĪTPUNKTI])=0,"0",SUMIF(Mācību_priekšmeti[NEPIECIEŠAMS],KREDĪTPUNKTI!$B11,Mācību_priekšmeti[KREDĪTPUNKTI])) -> 0 | D11: =SUMIFS(Mācību_priekšmeti[KREDĪTPUNKTI],Mācību_priekšmeti[NEPIECIEŠAMS],KREDĪTPUNKTI!$B11,Mācību_priekšmeti[PABEIGTS],"Jā") -> 0 | E11: =SUMIF(Mācību_priekšmeti[NEPIECIEŠAMS],KREDĪTPUNKTI!$B11,Mācību_priekšmeti[KREDĪTPUNKTI])-SUMIFS(Mācību_priekšmeti[KREDĪTPUNKTI],Mācību_priekšmeti[NEPIECIEŠAMS],KREDĪTPUNKTI!$B11,Mācību_priekšmeti[PABEIGTS],"Jā") -> 0
B12: Kopā | C12: =SUBTOTAL(109,KREDĪTPUNKTI!$C$8:$C$11) -> 9 | D12: =SUBTOTAL(109,KREDĪTPUNKTI!$D$8:$D$11) -> 6 | E12: =SUBTOTAL(109,KREDĪTPUNKTI!$E$8:$E$11) -> 3
B13: Mācību_priekšmeti
B14: MĀCĪBU PRIEKŠMETA NOSAUKUMS | C14: MĀCĪBU PRIEKŠMETA NR. | D14: NEPIECIEŠAMS | E14: KREDĪTPUNKTI | F14: PABEIGTS | G14: NOVĒRTĒJUMS | H14: SEMESTRIS
B15: 1. mācību priekšmets | C15: Numurs | D15: A grupas mācību priekšmets | E15: 4 | F15: Jā | G15: 4.0 | H15: 1. SEMESTRIS
B16: 2. mācību priekšmets | C16: Numurs | D16: B grupas mācību priekšmets | E16: 3 | F16: Nē | H16: 1. SEMESTRIS
B17: 3. mācību priekšmets | C17: Numurs | D17: C grupas mācību priekšmets | E17: 2 | F17: Jā | G17: 3.0 | H17: 1. SEMESTRIS

Sheet BUDŽETS
B1: =Augstskola -> STUDIJU
B2: BUDŽETA ŽURNĀLS
B3: Mans budžets | C3: =Gads -> GADS
B4: IZTĒRĒTIE IENĀKUMI PROCENTOS
B5: =NETO_IKMĒNEŠA_IZDEVUMI/NETO_IKMĒNEŠA_IENĀKUMI -> 75%
B6: =B5 -> 0.7454545455
B7: NETO IKMĒNEŠA IENĀKUMI | C7: NETO IKMĒNEŠA IZDEVUMI | D7: BILANCE
B8: =C10 -> 2,750 EUR | C8: ='NETO IKMĒNEŠA IZDEVUMI'!C4+'SEMESTRA IZDEVUMI'!D4 -> 2,050 EUR | D8: =NETO_IKMĒNEŠA_IENĀKUMI-NETO_IKMĒNEŠA_IZDEVUMI -> 700 EUR
B9: Semestra mēneši | C9: 4
B10: IKMĒNEŠA IENĀKUMI | C10: =SUM(IkmēnešaIenākumi[SUMMA]) -> 2,750 EUR
B11: PRECE | C11: SUMMA
B12: Fiksētie ienākumi | C12: 1,500 EUR
B13: Pabalsti | C13: 500 EUR
B14: Aizdevumi | C14: 500 EUR
B15: Citi ienākumi | C15: 250 EUR

Sheet NETO IKMĒNEŠA IZDEVUMI
B1: =Augstskola -> STUDIJU
B2: BUDŽETA ŽURNĀLS
B3: Ikmēneša izdevumi | C3: =Gads -> GADS
B4: IKMĒNEŠA IZDEVUMI | C4: =SUM(IkmēnešaIzdevumi[SUMMA]) -> 1,675 EUR
B5: PRECE | C5: SUMMA
B6: Īres maksa | C6: 300 EUR
B7: Komunālie pakalpojumi | C7: 50 EUR
B8: Mobilais tālrunis | C8: 75 EUR
B9: Pārtikas preces | C9: 250 EUR
B10: Auto izdevumi | C10: 50 EUR
B11: Studiju kredīti | C11: 500 EUR
B12: Kredītkartes | C12: 275 EUR
B13: Apdrošināšana | C13: 125 EUR
B14: Izklaide | C14: 50 EUR
B15: Dažādi | C15: 0 EUR

Sheet SEMESTRA IZDEVUMI
B1: =Augstskola -> STUDIJU
B2: BUDŽETA ŽURNĀLS
B3: Semestra izdevumi | C3: =Gads -> GADS
B4: SEMESTRA IZDEVUMI (kopā/mēnesī) | C4: =SUM(SemestraIzdevumi[SUMMA]) -> 1,500 EUR | D4: =SUM(SemestraIzdevumi[MĒNESĪ]) -> 375 EUR
B5: VIENUMS | C5: SUMMA | D5: MĒNESĪ
B6: Mācību maksa | C6: 750 EUR | D6: =SemestraIzdevumi[[#This Row],[SUMMA]]/Semestra_mēneši -> 188 EUR
B7: Laboratorijas maksa | C7: 250 EUR | D7: =SemestraIzdevumi[[#This Row],[SUMMA]]/Semestra_mēneši -> 63 EUR
B8: Grāmatas | C8: 500 EUR | D8: =SemestraIzdevumi[[#This Row],[SUMMA]]/Semestra_mēneši -> 125 EUR
B9: Noguldījumi | C9: 0 EUR | D9: =SemestraIzdevumi[[#This Row],[SUMMA]]/Semestra_mēneši -> 0 EUR
B10: Transports | C10: 0 EUR | D10: =SemestraIzdevumi[[#This Row],[SUMMA]]/Semestra_mēneši -> 0 EUR
B11: Citi maksājumi | C11: 0 EUR | D11: =SemestraIzdevumi[[#This Row],[SUMMA]]/Semestra_mēneši -> 0 EUR

Sheet GRĀMATAS
B1: =Augstskola -> STUDIJU
B2: GRĀMATU ŽURNĀLS
B3: Grāmatu saraksts
B4: NOSAUKUMS | C4: AUTORS | D4: MĀCĪBU PRIEKŠMETS | E4: KUR IEGĀDĀTIES? | F4: ISBN | G4: PIEZĪMES
B5: Grāmatas nosaukums | C5: Autors | D5: Mācību priekšmets | E5: Atrašanās vieta | F5: Numurs
B6: Grāmatas nosaukums | C6: Autors | D6: Mācību priekšmets | E6: Atrašanās vieta | F6: Numurs
B7: Grāmatas nosaukums | C7: Autors | D7: Mācību priekšmets | E7: Atrašanās vieta | F7: Numurs
